Cogmind - Beta 17 @@@ ROGUE MODE // 2026.07.28 @ 14:19:09 Player: teag2 Result: Defending 0bPrime! Performance ------------- Evolutions (8) 4000 Regions Visited (21) 4200 Robots Destroyed (242) 1210 Value Destroyed (11143) 11143 Prototype IDs (142) 2840 Alien Tech Used (2) 400 Bonus (28738) 28738 TOTAL SCORE: 52531 Bonus ------- High Alert Combat Kills 5530 Follower Combat Kills 2350 Hunted by Unchained 500 Network Hubs Disabled 400 Registered with UFD 300 Met Optimus in HQ 500 Met Warlord at Base 500 MAIN.C Attacked Warlord 500 Warlord Defense Kills 54 Built Enhanced Grunts 300 A7 Reached Mainframe 300 Met R17 at Cetus 500 Met R17 at Research 2000 Met Optimus at Protoforge 1000 Executed Drillbomb Mission 10000 Optimus Survived to 0b1 3000 Win 3000 Friendly Fire -1996 Cogmind --------- Core Integrity 228/1450 Matter 300/300 Energy 900/900 System Corruption 22% Temperature Cool (0) Movement Core (50) Location 0bPrime Parts ------- > --- POWER (2) -------- (None) > --- PROPULSION (7) --- (None) > --- UTILITY (11) ----- Concept Phasing Heat Sink Concept Chromion Battery Graphene Brace > --- WEAPON (3) ------- (None) > --- INVENTORY (5) ---- Overtuned Medium Treads Overtuned Huge Scrapsphere Guided Micro-nuke Launcher Peak State ------------ > --- POWER ------------ Particle Reactor > --- PROPULSION ------- Impulse Thruster Array Impulse Thruster Array Impulse Thruster Array Experimental Surge Thruster > --- UTILITY ---------- 0bPrime Scrap Suit Concept Phasing Heat Sink Concept Antigrav Storage Unit Concept Chromion Battery Advanced Gravity Neutralizer Advanced Visual Processing Unit Advanced Signal Interpreter Centrium Light Armor Plating Graphene Brace > --- WEAPON ----------- Guided Micro-nuke Launcher Nanosword > --- INVENTORY -------- Particle Reactor Medium Treads Overtuned Medium Treads Overtuned Medium Treads Overtuned Medium Treads Impulse Thruster Array Concept Chromion Battery Advanced Signal Interpreter Centrium Light Armor Plating Experimental Hardlight Generator Advanced Datajack UFD Drillbomb [Rating: 195] Favorites ----------- Power Light Angular Momentum Engine Engine Light Angular Momentum Engine Power Core Light Neutrino Core Reactor Light Antimatter Reactor Propulsion Light Treads Treads Light Treads Leg Flexi-carbon Leg Wheel Compact Wheel Hover Unit Antigrav System Flight Unit Cooled Field Propulsion Drive Utility System Mapper Device Improved Heat Sink Storage Large Storage Unit Processor Experimental Signal Interpreter Hackware System Mapper Protection Centrium Medium Armor Plating Weapon Falx Energy Gun Heavy Beamcaster Energy Cannon Powered Cannon Ballistic Gun Subdweller Machine Gun Ballistic Cannon Battle Cannon Launcher Guided Micro-nuke Launcher Special Weapon Improved Remote Datajack Slashing Weapon Falx Piercing Weapon Vortex Lance Special Melee Weapon Advanced Datajack Build | -11 -10 -10 -7 -7 -5 -5 -5 -5 -4 -4 -4 -4 -4 -4 -4 -4 -3 -3 -2 -2 -2 ------- Run | Yrd Mat Sub Rec Scr Fac Upp Upp War Pro Fac Was Fac Ext Cet Arc Hub Res Tes Res Qua Frg Slots Evolved 16 | . . . . . 10 . . . . 2 . . . . . . 2 . 2 . . Power 1 | . . . . . . . . . . 1 . . . . . . . . . . . Propulsion 5 | . . . . . 3 . . . . 1 . . . . . . 1 . . . . Utility 9 | . . . . . 7 . . . . . . . . . . . 1 . 1 . . Weapon 1 | . . . . . . . . . . . . . . . . . . . 1 . . Parts Attached 210 | . 6 11 9 5 34 2 2 10 4 11 . 14 21 9 8 3 14 6 4 4 33 Power 27 | . . 1 1 2 1 . . . . 1 . 4 5 1 2 . 2 . 1 1 5 Engine 11 | . . 1 1 1 1 . . . . . . 2 1 . 2 . 1 . 1 . . Core 6 | . . . . 1 . . . . . 1 . 1 1 . . . . . . 1 1 Reactor 10 | . . . . . . . . . . . . 1 3 1 . . 1 . . . 4 Propulsion 59 | . 2 1 1 . 13 1 . 4 1 2 . 6 10 4 . . 2 2 2 2 6 Treads 15 | . 2 . . . 3 . . . . . . . 8 1 . . . . . . 1 Leg 1 | . . . . . . . . . . . . . 1 . . . . . . . . Wheel 2 | . . 1 1 . . . . . . . . . . . . . . . . . . Hover 6 | . . . . . 5 1 . . . . . . . . . . . . . . . Flight 35 | . . . . . 5 . . 4 1 2 . 6 1 3 . . 2 2 2 2 5 Utility 80 | . 2 2 3 3 14 1 1 2 1 4 . 4 2 2 4 2 9 4 1 1 18 Device 39 | . 1 1 1 1 6 1 1 . 1 3 . 2 1 1 2 1 6 3 . . 7 Storage 10 | . 1 1 1 2 . . . . . . . . . . . . 2 . . . 3 Processor 9 | . . . . . 1 . . . . . . . . . . 1 . 1 . 1 5 Hackware 12 | . . . . . 6 . . 1 . . . 2 . . 1 . 1 . 1 . . Protection 10 | . . . 1 . 1 . . 1 . 1 . . 1 1 1 . . . . . 3 Artifact . | . . . . . . . . . . . . . . . . . . . . . . Weapon 44 | . 2 7 4 . 6 . 1 4 2 4 . . 4 2 2 1 1 . . . 4 Energy Gun 13 | . 1 1 1 . 3 . . 1 . 1 . . 3 1 . 1 . . . . . Energy Cannon 7 | . . 2 3 . . . . 1 1 . . . . . . . . . . . . Ballistic Gun 7 | . 1 2 . . 1 . . . . . . . . 1 1 . . . . . 1 Ballistic Cannon 2 | . . 1 . . . . . . . . . . 1 . . . . . . . . Launcher 6 | . . 1 . . 1 . . . . 1 . . . . . . . . . . 3 Special Weapon 3 | . . . . . . . 1 1 1 . . . . . . . . . . . . Impact Weapon . | . . . . . . . . . . . . . . . . . . . . . . Slashing Weapon 3 | . . . . . 1 . . . . 1 . . . . . . 1 . . . . Piercing Weapon 1 | . . . . . . . . 1 . . . . . . . . . . . . . Special Melee Weapon 2 | . . . . . . . . . . 1 . . . . 1 . . . . . . Unidentified Prototypes 40 | . . . . . 1 . . 5 3 1 . . 1 4 . 1 7 2 2 2 11 Corrupted Parts 2 | . . . . . 2 . . . . . . . . . . . . . . . . System Corruption 4 | . . . . . 4 . . . . . . . . . . . . . . . . Parts Lost 65 | . 2 3 1 . 9 . . . . 2 . 11 4 1 . 1 4 . 2 . 25 Power 11 | . . 1 1 . 1 . . . . . . 2 1 . . 1 1 . 1 . 2 Propulsion 26 | . 1 1 . . 3 . . . . 1 . 5 2 . . . 1 . 1 . 11 Utility 19 | . . . . . 4 . . . . 1 . 3 1 . . . 1 . . . 9 Weapon 9 | . 1 1 . . 1 . . . . . . 1 . 1 . . 1 . . . 3 Highest Loss Streak 8 | . 2 1 1 . 3 . . . . 1 . 5 2 1 . 1 2 . 1 . 8 To Critical Strikes . | . . . . . . . . . . . . . . . . . . . . . . Average Backups 14 | . 5 12 20 22 15 13 13 12 13 13 15 13 13 11 11 12 13 13 13 13 14 Power 1 | . 1 . 1 2 1 1 1 1 1 1 1 . . . 1 2 1 1 1 1 1 Propulsion 2 | . 3 1 . . 5 5 6 2 2 1 2 1 5 6 5 3 1 1 1 1 3 Utility 5 | . . 3 9 12 4 3 3 4 5 5 5 6 3 2 3 4 7 9 9 9 7 Weapon 4 | . . 6 9 4 2 1 1 4 5 5 5 4 4 2 2 2 2 2 1 1 1 Tool/Special . | . . . . . . . . . . . . . . . . . . . . . . Unused Backups 44 | . 5 . 2 7 4 2 . . . 3 . 1 5 1 1 2 . 1 . 1 9 Power 4 | . . . . 1 . 1 . . . 1 . . . . 1 . . . . . . Propulsion 14 | . 3 . . . 2 . . . . . . . 1 1 . 1 . . . . 6 Utility 16 | . 2 . 2 3 . . . . . 2 . 1 2 . . 1 . . . 1 2 Weapon 8 | . . . . 3 1 . . . . . . . 2 . . . . 1 . . 1 Tool/Special 2 | . . . . . 1 1 . . . . . . . . . . . . . . . Average Slot Usage (%) 87 | . 87 92 89 70 83 99 100 99 98 96 94 93 93 86 86 88 86 93 89 92 73 Engine 8 | . 14 13 12 11 4 5 5 5 5 5 5 4 2 . 7 9 4 9 7 4 . Reactor 1 | . . . . . . . . . . . . . 7 9 2 . 2 . . . 2 Treads 7 | . 14 20 2 . 7 . . . . . . . 19 19 . . . . . . . Wheel 5 | . . . 23 25 4 . . . . . . . . . . . . . . . . Hover 2 | . . . . . 13 28 29 4 . . . . . . . . . . . . . Flight 8 | . . . . . . . . 24 29 30 31 29 4 6 21 21 22 27 26 27 21 Device 13 | . 3 14 7 7 13 17 17 13 11 10 10 11 15 17 15 11 14 19 20 19 15 Storage 8 | . 14 14 13 12 5 5 5 5 5 5 5 5 5 5 5 5 4 4 4 4 8 Processor 2 | . . . . . 4 5 5 5 5 5 5 5 4 . . 3 4 4 4 7 7 Hackware 8 | . . . . . 9 23 23 24 23 21 21 20 16 15 20 21 19 14 12 13 4 Protection 2 | . . . 5 . 4 . . 1 4 4 5 2 3 3 2 5 2 3 3 1 1 Energy Gun 2 | . 18 5 . . 1 . . . . . . . 5 2 . . . . . . . Energy Cannon 3 | . . 5 12 12 1 . . . . . . . . . . . . . . . . Ballistic Gun 1 | . 9 6 . . 3 5 . . . . . . . . . . . . . . . Ballistic Cannon 3 | . . 10 8 . . . . . . . . . 3 3 . . . . . . . Slashing Weapon 1 | . . . . . 2 5 5 4 5 4 5 3 . 1 4 4 4 4 4 4 2 Special Melee Weapon 1 | . . . . . . . . . . 2 . 2 . . 4 5 2 3 4 4 1 Peak Build Rating 195 | . 7 16 30 33 87 87 88 92 104 119 113 126 119 125 128 127 148 152 166 167 195 Average Rating 73 | . 6 12 22 29 69 85 87 85 89 108 112 115 97 98 124 125 138 147 160 160 162 On Entrance 88 | 6 6 7 14 28 33 80 87 87 89 91 112 113 114 92 118 127 119 145 152 159 159 Avg Prop Armor Cover (%) 4 | . 8 12 5 . 3 4 4 5 . . . . 3 . . . . . . . . Naked Turns . | . . . . . . . . . . . . . . . . . . . . . . Heaviest Build 117 | 11 16 62 104 100 117 36 36 35 35 45 38 47 72 68 53 52 54 55 55 52 69 Greatest Support 147 | 20 40 40 26 26 65 41 41 41 43 47 45 47 147 147 53 53 61 56 56 53 69 Greatest Overweight (x) 4 | . . 3 4 3 4 . . . . 1 . 1 1 . . . 1 . 1 . 1 Average Overweight (x) . | . . 1 2 3 . . . . . . . . . . . . . . . . . Largest Inventory Capacity 25 | . 10 20 25 25 25 15 15 15 15 15 15 15 15 15 15 15 15 15 15 15 25 Average Capacity 18 | . 9 19 24 25 20 15 15 15 15 15 15 15 15 15 15 15 15 15 15 15 21 Most Carried 25 | . 7 20 25 25 25 15 15 15 15 15 15 15 15 15 15 15 15 15 15 15 25 Average Carried 16 | . 5 14 23 23 17 14 14 14 14 13 14 13 14 14 14 14 14 14 14 14 18 Final Capacity 25 | 8 10 20 25 25 15 15 15 15 15 15 15 15 15 15 15 15 15 15 15 15 5 Final Carried 25 | 6 5 20 25 25 15 15 15 15 15 15 15 13 15 15 15 15 14 15 14 14 5 Scrap Suit Usage (%) 1 | . . . . . 26 . . . . . . . . . . . . . . . 1 Parts Cannibalized 1 | . . . . . 1 . . . . . . . . . . . . . . . . Class Distribution -------------------- 48% | Mutant 13% | Wizard-Sprinter 12% | Hacker-Mutant 8% | Hacker-Sprinter 5% | Hacker-Ninja Dominant Class ---------------- Mutant | -10/Materials Mutant | -10/Subcaves Mutant | -7/Recycling Mutant | -7/Scraptown Mutant | -5/Factory Hacker-Mutant | -5/Upper Caves Hacker-Mutant | -5/Upper Caves Hacker-Sprinter | -5/Warlord Hacker-Sprinter | -4/Proximity Caves Hacker-Sprinter | -4/Factory Hacker-Sprinter | -4/Waste Hacker-Sprinter | -4/Factory Hacker-Mutant | -4/Extension Hacker-Mutant | -4/Cetus Wizard-Sprinter | -4/Archives Wizard-Sprinter | -4/Hub_04(d) Wizard-Scout | -3/Research Hacker-Ninja | -3/Testing Hacker-Ninja | -2/Research Hacker-Ninja | -2/Quarantine Hacker-Ninja | -2/Protoforge Resources | -11 -10 -10 -7 -7 -5 -5 -5 -5 -4 -4 -4 -4 -4 -4 -4 -4 -3 -3 -2 -2 -2 ----------- Run | Yrd Mat Sub Rec Scr Fac Upp Upp War Pro Fac Was Fac Ext Cet Arc Hub Res Tes Res Qua Frg Matter Collected 10034 | 200 62 387 411 200 718 61 75 180 79 233 . 275 677 343 168 . 320 148 32 95 5370 Remotely . | . . . . . . . . . . . . . . . . . . . . . . Salvage Created 8264 | . 401 280 609 . 917 . . 30 228 285 . 303 622 . 297 . 207 148 118 95 3724 Parts 361 | . 28 17 30 . 59 . . 3 1 16 . 26 18 . 26 . 11 11 4 11 100 Haulers Intercepted 4 | . 1 . . . . . . . . 1 . . . . . . . . 1 . 1 Recyclers Shooed 6 | . . . 4 . 2 . . . . . . . . . . . . . . . . Parts Field Recycled . | . . . . . . . . . . . . . . . . . . . . . . Retrieved Matter . | . . . . . . . . . . . . . . . . . . . . . . Parts Self-Destructed 45 | . . 11 . . . . 13 . 21 . . . . . . . . . . . . Prevented . | . . . . . . . . . . . . . . . . . . . . . . Parts Restored . | . . . . . . . . . . . . . . . . . . . . . . Kills | -11 -10 -10 -7 -7 -5 -5 -5 -5 -4 -4 -4 -4 -4 -4 -4 -4 -3 -3 -2 -2 -2 ------- Run | Yrd Mat Sub Rec Scr Fac Upp Upp War Pro Fac Was Fac Ext Cet Arc Hub Res Tes Res Qua Frg Combat Hostiles Destroyed 177 | . 9 8 3 . 19 . . 1 . 5 . 8 9 . . . 2 . . 1 112 Melee 12 | . . . . . 1 . . 1 . . . 4 3 . . . 2 . . 1 . Guns 23 | . 9 4 . . 6 . . . . . . 4 . . . . . . . . . Cannons 16 | . . 2 3 . 5 . . . . . . . 6 . . . . . . . . AOE 126 | . . 2 . . 7 . . . . 5 . . . . . . . . . . 112 Classes Destroyed 26 | . 4 2 2 . 6 . . . . . . 1 2 . . . . . . . 9 Worker 7 | . . . . . 4 . . . . . . 3 . . . . . . . . . Builder 8 | . . . 3 . 2 . . . . . . 2 1 . . . . . . . . Tunneler 1 | . . . . . 1 . . . . . . . . . . . . . . . . Hauler 4 | . 1 . . . . . . . . 1 . . . . . . . . 1 . 1 Recycler 7 | . 1 . 5 . 1 . . . . . . . . . . . . . . . . Mechanic 8 | . . . . . . . . . . . . . . . . . . . . . 8 Operator 13 | . . . . . 1 . . . . 2 . . . . 9 . . . . . 1 Drone 20 | . . . . . . . . . . . . . . . . . . . . . 20 Turret 2 | . . 2 . . . . . . . . . . . . . . . . . . . Watcher 11 | . . . . . 3 . . . . 1 . 2 . . . . 3 . . . 2 Swarmer 54 | . 5 5 . . 10 . . 1 . 5 . 4 . . . . 2 . . 1 21 Cutter 3 | . . . . . . . . . . . . 3 . . . . . . . . . Saboteur 5 | . . . . . . . . . . . . . . . . . . . . . 5 Grunt 27 | . 4 . . . 3 . . . . . . . 3 . . . . . . . 17 Brawler 7 | . . . . . . . . . . . . . 1 . . . . . . . 6 Duelist 6 | . . . . . . . . . . . . . . . . . . . . . 6 Protector 5 | . . . . . . . . . . . . . . . . . . . . . 5 Sentry 10 | . . . 3 . . . . . . . . 1 4 . . . . . . . 2 Hunter 9 | . . . . . 1 . . . . . . . . . . . . . . . 8 Programmer 10 | . . . . . 5 . . . . . . . . . . . . . . . 5 Behemoth 1 | . . . . . . . . . . . . . 1 . . . . . . . . Hotshot 2 | . . . . . . . . . . . . . . . . . . . . . 2 Striker 6 | . . . . . . . . . . . . . . . . . . . . . 6 Executioner 8 | . . . . . . . . . . . . . . . . . . . . . 8 Subdweller 3 | . . 3 . . . . . . . . . . . . . . . . . . . Elite 4 | . . . . . . . . . . . . . . . . . . . . . 4 Scrapoid 2 | . . . . . . . . . . . . . . . . . . . . . 2 Best Kill Streak 21 | . 10 4 4 . 8 . . 1 . 5 . 7 2 . 7 . 2 . 1 1 21 Combat Bots Only 18 | . 5 4 1 . 5 . . 1 . 5 . 4 2 . . . 2 . . 1 18 Max Kills in Single Turn 8 | . 1 2 1 . 8 . . 1 . 5 . 3 1 . 1 . 1 . 1 1 5 Gunslinging 1 | . . . . . . . . . . . . 1 . . . . . . . . . Exploded 5 | . . 2 . . 5 . . . . 5 . . . . . . . . . . 4 Melee 1 | . . . . . 1 . . 1 . . . 1 1 . . . 1 . . 1 . Uniques/NPCs Destroyed . | . . . . . . . . . . . . . . . . . . . . . . Combat | -11 -10 -10 -7 -7 -5 -5 -5 -5 -4 -4 -4 -4 -4 -4 -4 -4 -3 -3 -2 -2 -2 -------- Run | Yrd Mat Sub Rec Scr Fac Upp Upp War Pro Fac Was Fac Ext Cet Arc Hub Res Tes Res Qua Frg Hostile Shots Fired 1019 | . 48 60 63 . 130 . . 8 6 39 . 93 37 34 3 40 96 28 33 6 295 Missed 450 | . 7 17 27 . 46 . . 2 4 22 . 31 17 16 2 23 61 16 16 6 137 Hits 569 | . 41 43 36 . 84 . . 6 2 17 . 62 20 18 1 17 35 12 17 . 158 Melee 22 | . . . . . . . . 2 . . . 19 . . . . . . . . 1 Projectile 547 | . 41 43 36 . 84 . . 4 2 17 . 43 20 18 1 17 35 12 17 . 157 AOE 2 | . . . . . . . . . . . . . 2 . . . . . . . . Critical Strikes 37 | . . . . . 8 . . 1 . . . 11 1 2 . 1 1 . . . 12 Actively Blocked 27 | . . . . . . . . 1 . . . 11 1 2 . . 1 . . . 11 Damage Taken 12303 | . 387 637 258 . 1460 . . 136 49 304 . 1101 672 472 119 434 567 193 381 . 5133 Core 2471 | . 54 130 61 . 173 . . 32 24 51 . 279 115 99 22 103 78 28 96 . 1126 Absorbed by Shields 321 | . . . . . . . . . . . . 21 248 52 . . . . . . . Redirected to Shielding 213 | . . . . . . . . 39 . 113 . 61 . . . . . . . . . Ignored by Resistances 9 | . . . . . . . . . . . . . . . . . . . . . 9 Regen/Repaired (Parts) 55 | . . . . 45 10 . . . . . . . . . . . . . . . . Core Remaining (%) 54 | 100 . . . 2 . . . . 77 . . . . . . 41 . 91 . . 15 Volleys Fired 468 | . 25 48 51 . 59 . 4 11 . 4 . 8 33 17 11 . . . . . 197 Largest 2 | . 2 2 2 . 2 . 1 1 . 1 . 2 2 2 1 . . . . . 1 Hottest 162 | . 90 113 113 . 120 . 7 7 . 49 . 90 162 136 80 . . . . . 55 Shots Fired 623 | . 46 86 69 . 84 2 4 11 . 4 . 14 68 30 11 . . . . . 194 Gun 225 | . 46 40 . . 61 2 . . . 2 . 14 36 13 11 . . . . . . Cannon 177 | . . 37 69 . 22 . . . . . . . 32 17 . . . . . . . Launcher 206 | . . 9 . . 1 . . . . 2 . . . . . . . . . . 194 Special 15 | . . . . . . . 4 11 . . . . . . . . . . . . . Kinetic 198 | . 22 61 24 . 33 2 . . . . . . 32 17 7 . . . . . . Thermal 197 | . 24 25 45 . 50 . . . . . . . 36 13 4 . . . . . . Explosive 197 | . . . . . 1 . . . . 2 . . . . . . . . . . 194 Electromagnetic . | . . . . . . . . . . . . . . . . . . . . . . Entropic 16 | . . . . . . . . . . 2 . 14 . . . . . . . . . Robot Hit Streak 40 | . 9 26 3 . 15 . 8 4 . . . 4 14 11 12 . . . . . 40 Robot Miss Streak 6 | . 2 2 5 . 3 . . 1 . 2 . 4 6 4 1 . . . . . 2 Penetration Max 2 | . . . . . 1 . . . . . . 2 . . . . . . . . . Secondary Targets 6 | . 5 . . . . . . . . . . 1 . . . . . . . . . Max Gunslinging Chain 1 | . 1 . . . . . . . . . . 1 . . . . . . . . . Shots Hit Robots 400 | . 30 39 25 . 64 . 4 7 3 17 . 26 58 20 23 . 8 8 2 6 60 Core Hits 518 | . 20 22 11 . 35 . . 1 1 6 . 14 17 8 7 . 5 1 1 2 367 Critical Kills 2 | . . . 1 . 1 . . . . . . . . . . . . . . . . Critical Parts Destroyed . | . . . . . . . . . . . . . . . . . . . . . . Critical Strikes 19 | . . . 2 . 4 . . . . 2 . 4 7 . . . . . . . . Burn 6 | . . . . . 3 . . . . . . . 3 . . . . . . . . Meltdown 2 | . . . 1 . 1 . . . . . . . . . . . . . . . . Blast 2 | . . . 1 . . . . . . . . . 1 . . . . . . . . Sever 2 | . . . . . . . . . . 2 . . . . . . . . . . . Sunder 7 | . . . . . . . . . . . . 4 3 . . . . . . . . Melee Attacks 226 | . . . . . 18 2 1 2 6 36 . 41 18 . 16 2 15 14 7 15 33 Impact . | . . . . . . . . . . . . . . . . . . . . . . Slashing 168 | . . . . . 18 2 1 1 6 34 . 21 3 . 15 2 14 10 6 12 23 Piercing . | . . . . . . . . . . . . . . . . . . . . . . Entropic 30 | . . . . . . . . 1 . . . 17 12 . . . . . . . . Sneak Attacks 53 | . . . . . 5 . . . . 3 . 6 8 . 10 . 3 3 2 2 11 Combat Hostiles 7 | . . . . . . . . . . . . 1 4 . . . 2 . . . . Follow-up Attacks . | . . . . . . . . . . . . . . . . . . . . . . Damage Inflicted 51072 | . 333 1052 809 . 3281 . . 46 295 1252 . 1606 2754 723 1487 . 438 737 116 322 35821 Guns 3148 | . 326 409 . . 1087 . . . . . . 371 513 234 208 . . . . . . Cannons 3330 | . . 302 807 . 620 . . . . . . . 1112 489 . . . . . . . Explosions 36994 | . . 341 . . 982 . . . . 454 . . . . . . . . . . 35217 Melee 7557 | . . . . . 580 . . 46 295 798 . 1235 1107 . 1279 . 438 737 116 322 604 Ramming 43 | . 7 . 2 . 12 . . . . . . . 22 . . . . . . . . Kinetic 3275 | . 111 692 185 . 561 . . . . . . . 1112 489 125 . . . . . . Thermal 3531 | . 215 360 622 . 1504 . . . . . . . 513 234 83 . . . . . . Explosive 36295 | . . . . . 624 . . . . 454 . . . . . . . . . . 35217 Electromagnetic . | . . . . . . . . . . . . . . . . . . . . . . Impact . | . . . . . . . . . . . . . . . . . . . . . . Slashing 5994 | . . . . . 580 . . 46 295 798 . 609 170 . 1279 . 438 737 116 322 604 Piercing . | . . . . . . . . . . . . . . . . . . . . . . Entropic 1934 | . . . . . . . . . . . . 997 937 . . . . . . . . Highest Corruption 22 | . 1 1 1 . 10 7 7 7 . . 8 8 11 11 11 1 . . . . 22 Average Corruption 4 | . 1 1 1 . 7 7 7 7 . . 8 8 9 11 8 1 . . . . 7 Corruption Purged 14 | . . . . . 3 . . . . . . . . . 11 . . . . . . Corruption Blocked . | . . . . . . . . . . . . . . . . . . . . . . Effects 303 | . . 58 16 . 32 15 20 . . . 1 14 83 18 6 . . . . . 40 Message Errors 80 | . . 15 5 . 8 3 7 . . . . 2 29 4 . . . . . . 7 Matter Fused 72 | . . 12 2 . 12 4 6 . . . . 5 20 3 3 . . . . . 5 Heat Flow Errors 30 | . . 6 2 . 5 3 3 . . . . 1 4 . . . . . . . 6 Energy Discharges 30 | . . 7 3 . 1 . 2 . . . . 1 9 2 . . . . . . 5 Parts Rejected 1 | . . . . . . . . . . . . . . . . . . . . . 1 Parts Fused 3 | . . . . . . . . . . . . . 1 . 1 . . . . . 1 Data Loss (minor) 48 | . . 12 3 . 4 2 1 . . . . 5 10 5 . . . . . . 6 Data Loss (major) 17 | . . 2 1 . . . 1 . . . 1 . 8 1 1 . . . . . 2 Misfires 7 | . . 2 . . . 2 . . . . . . 2 1 . . . . . . . Alerts 4 | . . 2 . . 1 1 . . . . . . . . . . . . . . . Misdirections 6 | . . . . . 1 . . . . . . . . . 1 . . . . . 4 Weapon Failures 5 | . . . . . . . . . . . . . . 2 . . . . . . 3 Overload Shots 1 | . . . . . 1 . . . . . . . . . . . . . . . . Overflow Damage 3390 | . . 9 39 . 382 . . . 82 150 . 142 289 . 527 . . 412 . . 1358 Projectiles 142 | . . . 39 . 90 . . . . . . . 13 . . . . . . . . Explosions 1602 | . . 9 . . 185 . . . . 85 . . . . . . . . . . 1323 Melee 1646 | . . . . . 107 . . . 82 65 . 142 276 . 527 . . 412 . . 35 Knockbacks 6 | . . 2 . . . . . . . . . . 4 . . . . . . . . Impact . | . . . . . . . . . . . . . . . . . . . . . . Kinetic 6 | . . 2 . . . . . . . . . . 4 . . . . . . . . Secondary . | . . . . . . . . . . . . . . . . . . . . . . Self-Inflicted Damage 163 | . . 103 . . . . . . . . . . . . . . . . . . 60 Shots 7 | . . 2 . . . . . . . . . . . . . . . . . . 5 Rammed 8 | . 1 . 3 . 3 . . . . . . . 1 . . . . . . . . Targets Rammed 8 | . 1 . 3 . 3 . . . . . . . 1 . . . . . . . . Kicked . | . . . . . . . . . . . . . . . . . . . . . . Crushed . | . . . . . . . . . . . . . . . . . . . . . . Highest Temperature 401 | . 158 178 275 . 401 261 263 5 7 30 . 183 219 198 139 12 152 138 195 . 187 Average Temperature 78 | . 68 79 55 . 135 103 107 3 7 18 . 73 85 108 70 7 61 54 51 . 88 Received Heat Transfer 1256 | . 132 138 72 . 81 . . 27 9 9 . 57 50 27 . 21 45 54 54 . 480 Effects 9 | . . . . . 7 . 2 . . . . . . . . . . . . . . Shutdowns 1 | . . . . . 1 . . . . . . . . . . . . . . . . Energy Bleed 3 | . . . . . 3 . . . . . . . . . . . . . . . . Interference 5 | . . . . . 3 . 2 . . . . . . . . . . . . . . Siege Activations . | . . . . . . . . . . . . . . . . . . . . . . Martial Activations . | . . . . . . . . . . . . . . . . . . . . . . Shielding Activations . | . . . . . . . . . . . . . . . . . . . . . . Robots Disrupted . | . . . . . . . . . . . . . . . . . . . . . . Combat Hostiles . | . . . . . . . . . . . . . . . . . . . . . . Robots Corrupted . | . . . . . . . . . . . . . . . . . . . . . . Combat Hostiles . | . . . . . . . . . . . . . . . . . . . . . . Parts Fried . | . . . . . . . . . . . . . . . . . . . . . . Impact Corruptions . | . . . . . . . . . . . . . . . . . . . . . . Robots Melted 2 | . . . 1 . 1 . . . . . . . . . . . . . . . . Combat Hostiles . | . . . . . . . . . . . . . . . . . . . . . . Parts Melted 8 | . . 1 2 . 4 . . . . . . . . . . . . . . . 1 Heat Transferred 4565 | . 582 546 370 . 1550 . . . . . . . 1036 370 111 . . . . . . Parts Sabotaged 1 | . . . . . . . . . . . . . . . . . . . . . 1 Parts Stolen . | . . . . . . . . . . . . . . . . . . . . . . Parts Stripped . | . . . . . . . . . . . . . . . . . . . . . . Power Chain Reactions . | . . . . . . . . . . . . . . . . . . . . . . Alert | -11 -10 -10 -7 -7 -5 -5 -5 -5 -4 -4 -4 -4 -4 -4 -4 -4 -3 -3 -2 -2 -2 ------- Run | Yrd Mat Sub Rec Scr Fac Upp Upp War Pro Fac Was Fac Ext Cet Arc Hub Res Tes Res Qua Frg Maximum Alert Level 5 | . . . . . 2 . . . . 1 . . 3 2 2 . 1 1 . . 5 Low Security (%) 70 | . 100 . 100 . 78 . . . . 88 100 100 53 . 77 100 33 86 100 100 40 Level 1 8 | . . . . . 17 . . . . 11 . . 1 . 19 . 66 13 . . 1 Level 2 5 | . . . . . 3 . . . . . . . 14 100 3 . . . . . . Level 3 5 | . . . . . . . . . . . . . 30 . . . . . . . 5 Level 4 1 | . . . . . . . . . . . . . . . . . . . . . 6 Level 5 8 | . . . . . . . . . . . . . . . . . . . . . 45 High Security . | . . . . . . . . . . . . . . . . . . . . . . Max Security . | . . . . . . . . . . . . . . . . . . . . . . Peak Influence 5117 | . 165 . 146 . 504 . . . . 332 112 143 857 618 423 169 363 210 76 90 5117 Initial 467 | . . . 146 . . . . . . . 112 71 70 467 212 . 72 186 76 36 42 Average 444 | . 81 . 24 . 142 . . . . 43 107 63 370 545 90 51 204 168 19 74 1809 Influence Increases 12547 | . 232 345 392 . 1085 . . 106 10 546 . 441 1641 341 281 258 585 111 202 139 5832 Destroy 0b10 Robot/C 3960 | . 180 140 60 . 380 . . 100 . 100 . 160 740 160 80 60 40 . . 20 1740 Destroy 0b10 Robot/NC 485 | . 10 . 40 . 60 . . . 10 20 . 35 25 10 45 . 15 15 5 5 190 Destroy Leader 524 | . 42 10 . . 76 . . . . 14 . 34 66 . . 20 26 . 2 . 234 Allied During Kill 1013 | . . . . . . . . 6 . . . . 692 153 125 37 . . . . . Trap Triggered on 0b10 60 | . . . . . . . . . . . . . . . . . 40 10 . . 10 Successful Hack 314 | . . . 22 . 34 . . . . 54 . 20 6 . . 20 4 24 45 18 67 Select Force Hacks 340 | . . . 240 . . . . . . . . . . . . 100 . . . . . Disable Machine 1020 | . . . . . 195 . . . . 45 . 45 . . 15 15 15 45 . 30 615 Destroy Structure 2506 | . . . 30 . 190 . . . . 118 . 42 52 18 16 6 10 2 15 21 1986 Partial Spotted 255 | . . . . . . . . . . 15 . 30 30 . . . . . 30 15 135 Lose Combat Pursuer 2070 | . . 195 . . 150 . . . . 180 . 75 30 . . . 435 15 105 30 855 Influence Decreases 7470 | . 168 104 697 . 581 402 102 104 12 226 218 400 949 644 813 119 393 305 274 129 830 Entered New Map 1737 | . . 32 159 . . 188 21 . 2 . 208 31 73 368 320 . 67 145 61 29 33 Time Decay 4670 | . 148 52 536 . 491 214 81 64 10 216 10 184 656 206 493 89 286 160 107 100 567 Lost Part 595 | . 20 20 2 . 90 . . . . 10 . 103 40 10 . 10 40 . 20 . 230 Lost Ally 301 | . . . . . . . . 40 . . . 1 180 60 . 20 . . . . . Purge Threat 167 | . . . . . . . . . . . . 81 . . . . . . 86 . . Squads Dispatched 80 | . 2 . . . 13 . . . . 12 . 6 3 . . 7 15 3 7 2 10 Investigation 43 | . . . . . 5 . . . . 8 . 3 . . . 4 8 1 5 2 7 Extermination 17 | . . . . . 6 . . . . 3 . 2 . . . 1 1 1 1 . 2 Reinforcement 19 | . 2 . . . 2 . . . . 1 . 1 2 . . 2 6 1 1 . 1 Assault 1 | . . . . . . . . . . . . . 1 . . . . . . . . Garrison . | . . . . . . . . . . . . . . . . . . . . . . Intercept . | . . . . . . . . . . . . . . . . . . . . . . Searches Triggered . | . . . . . . . . . . . . . . . . . . . . . . Construction Impeded 2 | . . . . . . . . . . . . . 2 . . . . . . . . Haulers Reinforced 2 | . . . . . . . . . . . . . . . . . 2 . . . . Active Scanning Responses . | . . . . . . . . . . . . . . . . . . . . . . Cargo Convoy Interrupts . | . . . . . . . . . . . . . . . . . . . . . . Stealth | -11 -10 -10 -7 -7 -5 -5 -5 -5 -4 -4 -4 -4 -4 -4 -4 -4 -3 -3 -2 -2 -2 --------- Run | Yrd Mat Sub Rec Scr Fac Upp Upp War Pro Fac Was Fac Ext Cet Arc Hub Res Tes Res Qua Frg Distress Signals 28 | . 2 . 1 . 1 . . . 1 . . 1 1 2 . . 9 . . . 10 Communications Jammed 13 | . . . . . . . . . . . . . . . . . . 9 4 . . Distress Signals 13 | . . . . . . . . . . . . . . . . . . 9 4 . . Times Spotted 570 | . 18 12 3 . 26 . . 9 9 23 6 27 35 10 9 24 57 11 21 8 262 Peak Tracking Total 22 | . 7 4 1 . 6 . . 8 8 8 6 9 6 5 2 20 17 6 12 3 22 Tactical Retreats 62 | . . 3 . . 5 . . . . 10 . 2 1 . . . 11 1 3 3 23 ECM-based Alert Blocks 12 | . . . . . . . . . . 3 . . . . . . 4 2 1 2 . Traps | -11 -10 -10 -7 -7 -5 -5 -5 -5 -4 -4 -4 -4 -4 -4 -4 -4 -3 -3 -2 -2 -2 ------- Run | Yrd Mat Sub Rec Scr Fac Upp Upp War Pro Fac Was Fac Ext Cet Arc Hub Res Tes Res Qua Frg Traps Triggered 8 | . 1 1 . . . . . . . 2 . 1 . . . 1 1 . . . 1 Indirectly . | . . . . . . . . . . . . . . . . . . . . . . Trap Hack Attempts 2 | . . . . . . . . . . . . . . . . . 2 . . . . Triggered . | . . . . . . . . . . . . . . . . . . . . . . Disarmed . | . . . . . . . . . . . . . . . . . . . . . . Reprogrammed 12 | . . . . . . . . . . . . . . . . . 7 4 . . 1 Reused 6 | . . . . . . . . . . . . . . . . . 4 1 . . 1 Traps Extracted . | . . . . . . . . . . . . . . . . . . . . . . Installed . | . . . . . . . . . . . . . . . . . . . . . . Triggered 6 | . . . . . . . . . . . . . . . . . 4 1 . . 1 Objects Rigged 10 | . . . . . 9 . . . . . . . . . . . . . . 1 . Exploded 3 | . . . . . 3 . . . . . . . . . . . . . . . . Machines | -11 -10 -10 -7 -7 -5 -5 -5 -5 -4 -4 -4 -4 -4 -4 -4 -4 -3 -3 -2 -2 -2 ---------- Run | Yrd Mat Sub Rec Scr Fac Upp Upp War Pro Fac Was Fac Ext Cet Arc Hub Res Tes Res Qua Frg Machines Disabled 74 | . . 4 . . 13 . . 1 . 3 . 3 1 . 1 1 1 3 . 2 41 Max in Single Turn 5 | . . 1 . . 4 . . 1 . 1 . 2 . . 1 1 1 1 . 1 5 Garrison Access 4 | . . . . . . . . . . 1 . 1 . . . . . 1 . . 1 Network Hub 2 | . . . . . . . . . . . . . . . . 2 . . . . . Machines Repaired . | . . . . . . . . . . . . . . . . . . . . . . Machines Dismantled . | . . . . . . . . . . . . . . . . . . . . . . Machines Sabotaged 2 | . . . . . . . . . . . . . . . . 2 . . . . . Overloaded Fab Kills . | . . . . . . . . . . . . . . . . . . . . . . Hacking | -11 -10 -10 -7 -7 -5 -5 -5 -5 -4 -4 -4 -4 -4 -4 -4 -4 -3 -3 -2 -2 -2 --------- Run | Yrd Mat Sub Rec Scr Fac Upp Upp War Pro Fac Was Fac Ext Cet Arc Hub Res Tes Res Qua Frg Machines Accessed 132 | . . 2 15 5 13 . 2 3 . 20 . 11 10 1 . 6 12 5 9 4 14 Terminals 66 | . . . 6 . 6 . . . . 10 . 6 9 1 . 6 5 3 5 3 6 Fabricators 13 | . . . . . 2 . . . . 3 . 1 . . . . 3 . . . 4 Repair Stations . | . . . . . . . . . . . . . . . . . . . . . . Recycling Units 31 | . . . 9 . 3 . . . . 5 . 2 1 . . . 4 . 4 . 3 Scanalyzers 5 | . . . . . 1 . . . . 1 . 1 . . . . . 1 . 1 . Garrison Access 5 | . . . . . 1 . . . . 1 . 1 . . . . . 1 . . 1 Total Hacks 400 | . . 4 37 25 44 . 4 4 . 67 . 30 30 3 . 13 45 11 28 10 45 Successful 257 | . . 4 17 25 22 . 4 4 . 51 . 24 17 1 . 9 21 6 17 7 28 Failed 142 | . . . 20 . 21 . . . . 16 . 6 13 2 . 4 24 5 11 3 17 Catastrophic 17 | . . . 4 . 4 . . . . 1 . . 1 . . . 3 . . . 4 Database Lockouts 1 | . . . . . 1 . . . . . . . . . . . . . . . . Manual 199 | . . . 28 . 23 . . . . 36 . 16 17 1 . 13 28 1 18 6 12 Terminals 226 | . . . 17 . 20 . . . . 42 . 17 28 3 . 13 29 6 22 9 20 Fabricators 40 | . . . . . 8 . . . . 9 . 4 . . . . 7 . . . 12 Repair Stations . | . . . . . . . . . . . . . . . . . . . . . . Recycling Units 70 | . . . 20 . 10 . . . . 8 . 3 2 . . . 9 . 6 . 12 Scanalyzers 22 | . . . . . 5 . . . . 7 . 5 . . . . . 4 . 1 . Garrison Access 5 | . . . . . 1 . . . . 1 . 1 . . . . . 1 . . 1 Terminal Hacks 120 | . . 4 1 25 7 . 4 4 . 18 . 7 9 1 . 3 8 3 9 4 13 Record 38 | . . 3 . 25 . . 3 2 . . . . . . . . . . . . 5 Part Schematic 5 | . . . 1 . 1 . . . . 1 . . . . . . 1 . . . 1 Robot Schematic 1 | . . . . . . . . . . . . . . . . . . . . . 1 Open Door 10 | . . . . . . . 1 2 . . . 1 4 1 . . . . 1 . . Level Access Points 1 | . . . . . . . . . . . . . . . . 1 . . . . . Branch Access Points 5 | . . . . . 1 . . . . 1 . . . . . . 1 . 1 1 . Machine Index 4 | . . . . . . . . . . 1 . 1 1 . . . . 1 . . . Terminal Index 6 | . . . . . . . . . . 1 . 1 . . . 1 . . 1 1 1 Fabricator Index 1 | . . . . . 1 . . . . . . . . . . . . . . . . Recycling Unit Index 4 | . . . . . . . . . . 1 . . . . . 1 . . 1 . 1 Scanalyzer Index 2 | . . . . . 1 . . . . 1 . . . . . . . . . . . Garrison Index 1 | . . . . . . . . . . . . . . . . . . . . . 1 Alert Level 1 | . . . . . . . . . . . . . . . . . 1 . . . . Unreport Threat 2 | . . . . . . . . . . . . 1 . . . . . . 1 . . Locate Traps 8 | . . . . . . . . . . 1 . . 3 . . . 2 . 1 . 1 Reprogram Traps 5 | . . . . . . . . . . . . . . . . . 1 1 1 1 1 Security Status 1 | . . . . . 1 . . . . . . . . . . . . . . . . Extermination Status 1 | . . . . . . . . . . 1 . . . . . . . . . . . Recall Investigation 5 | . . . . . . . . . . 4 . . . . . . 1 . . . . Recall Extermination 9 | . . . . . 2 . . . . 3 . 2 . . . . 1 . 1 . . Recall Reinforcements 1 | . . . . . . . . . . . . . 1 . . . . . . . . Hauler Manifests 2 | . . . . . . . . . . 1 . . . . . . . . 1 . . Registered Components 2 | . . . . . . . . . . 1 . . . . . . . . . 1 . Registered Prototypes 2 | . . . . . . . . . . 1 . 1 . . . . . . . . . Proto ID Catalog 2 | . . 1 . . . . . . . . . . . . . . . . . . 1 Protovariant Controls 1 | . . . . . . . . . . . . . . . . . . 1 . . . Fabricator Hacks 25 | . . . . . 5 . . . . 8 . 1 . . . . 4 . . . 7 Network Status 1 | . . . . . . . . . . 1 . . . . . . . . . . . Load Schematic 13 | . . . . . 3 . . . . 3 . 1 . . . . 2 . . . 4 Build 11 | . . . . . 2 . . . . 4 . . . . . . 2 . . . 3 Repair Station Hacks . | . . . . . . . . . . . . . . . . . . . . . . Recycling Unit Hacks 19 | . . . 6 . 2 . . . . 3 . 1 1 . . . 1 . 2 . 3 Report Inventory 8 | . . . 4 . . . . . . 1 . . 1 . . . . . . . 2 Retrieve Components 11 | . . . 2 . 2 . . . . 2 . 1 . . . . 1 . 2 . 1 Scanalyzer 18 | . . . . . 3 . . . . 7 . 5 . . . . . 2 . 1 . Insert Component 2 | . . . . . 1 . . . . . . 1 . . . . . . . . . Analyze 4 | . . . . . 2 . . . . . . 2 . . . . . . . . . Retrieve Study 12 | . . . . . . . . . . 7 . 2 . . . . . 2 . 1 . Garrison Access Hacks 4 | . . . . . . . . . . 1 . 1 . . . . . 1 . . 1 Seal Access 4 | . . . . . . . . . . 1 . 1 . . . . . 1 . . 1 Unauthorized Hacks 71 | . . . 10 . 5 . . . . 14 . 9 7 . . 6 8 . 6 2 4 Terminals 38 | . . . 2 . 3 . . . . 8 . 5 6 . . 6 2 . 2 2 2 Track 2 | . . . . . . . . . . . . 1 . . . . . . . . 1 Assimilate 5 | . . . . . . . . . . 1 . 1 . . . . 1 . . 1 1 Botnet 5 | . . . . . 1 . . . . 1 . . . . . 1 1 . 1 . . Detonate 2 | . . . . . 1 . . . . . . . . . . . . . . 1 . Operators 2 | . . . . . 1 . . . . . . . 1 . . . . . . . . Skim 17 | . . . 1 . . . . . . 6 . 3 5 . . 1 . . 1 . . Sabotage 4 | . . . . . . . . . . . . . . . . 4 . . . . . Search 1 | . . . 1 . . . . . . . . . . . . . . . . . . Fabricators 5 | . . . . . . . . . . 1 . 2 . . . . 2 . . . . Liberate 4 | . . . . . . . . . . 1 . 1 . . . . 2 . . . . Recompile 1 | . . . . . . . . . . . . 1 . . . . . . . . . Repair Stations . | . . . . . . . . . . . . . . . . . . . . . . Recycling Units 28 | . . . 8 . 2 . . . . 5 . 2 1 . . . 4 . 4 . 2 Mask 1 | . . . . . . . . . . . . . 1 . . . . . . . . Tunnel 8 | . . . 8 . . . . . . . . . . . . . . . . . . Fedlink 19 | . . . . . 2 . . . . 5 . 2 . . . . 4 . 4 . 2 Scanalyzers . | . . . . . . . . . . . . . . . . . . . . . . Garrison Access . | . . . . . . . . . . . . . . . . . . . . . . Data Cores Recovered . | . . . . . . . . . . . . . . . . . . . . . . Used . | . . . . . . . . . . . . . . . . . . . . . . Hacking Detections 62 | . . . 7 . 10 . . . . 13 . 5 3 . . 2 4 3 4 1 10 Full Trace Events 18 | . . . 6 . 3 . . . . 3 . . . . . . 2 . . . 4 Feedback Events . | . . . . . . . . . . . . . . . . . . . . . . Feedback Blocked 1 | . . . . . 1 . . . . . . . . . . . . . . . . Robot Schematics Acquired 3 | . . . . . . . . . . . . . . . . . . 1 . 1 1 Robots Built 1 | . . . . . . . . . . 1 . . . . . . . . . . . Authchips . | . . . . . . . . . . . . . . . . . . . . . . Time 187 | . . . . . . . . . . 187 . . . . . . . . . . . Total Robot Build Rating 7 | . . . . . . . . . . 7 . . . . . . . . . . . Part Schematics Acquired 23 | . . . 1 . 2 . . . . 1 . 1 . . . . 1 12 . 1 4 Parts Built 12 | . . . . . 2 . . . . 3 . . . . . . 4 . . . 3 Authchips 2 | . . . . . 2 . . . . . . . . . . . . . . . . Time 882 | . . . . . 67 . . . . 337 . . . . . . 256 . . . 222 Total Part Build Rating 85 | . . . . . 8 . . . . 18 . . . . . . 32 . . . 27 Part Studies Acquired 12 | . . . . . . . . . . 7 . 2 . . . . . 2 . 1 . Parts Repaired . | . . . . . . . . . . . . . . . . . . . . . . Time . | . . . . . . . . . . . . . . . . . . . . . . Parts Recycled . | . . . . . . . . . . . . . . . . . . . . . . Recycled Matter . | . . . . . . . . . . . . . . . . . . . . . . Retrieved Matter . | . . . . . . . . . . . . . . . . . . . . . . Retrieved Components 32 | . . . 7 . 11 . . . . 2 . . . . . . 3 . 5 . 4 Parts Scanalyzed 2 | . . . . . 1 . . . . . . 1 . . . . . . . . . Part Schematics Acquired 2 | . . . . . 1 . . . . . . 1 . . . . . . . . . Parts Damaged . | . . . . . . . . . . . . . . . . . . . . . . Bothacking | -11 -10 -10 -7 -7 -5 -5 -5 -5 -4 -4 -4 -4 -4 -4 -4 -4 -3 -3 -2 -2 -2 ------------ Run | Yrd Mat Sub Rec Scr Fac Upp Upp War Pro Fac Was Fac Ext Cet Arc Hub Res Tes Res Qua Frg Used RIF Installer . | . . . . . . . . . . . . . . . . . . . . . . Robots Hacked 32 | . . . . . . . 4 6 . 1 . 2 2 . 1 . 1 3 1 3 8 Non-combat 8 | . . . . . . . . 1 . 1 . 2 . . 1 . 1 . 1 1 . Combat 16 | . . . . . . . 4 5 . . . . 2 . . . . . . . 5 Robot Hacks Applied 25 | . . . . . . . 4 6 . 2 . 2 2 . 1 . 1 . 1 1 5 parse_system 19 | . . . . . . . 4 6 . 1 . . 2 . . . 1 . . . 5 no_distress 4 | . . . . . . . . . . 1 . 2 . . . . . . 1 . . check_alert 2 | . . . . . . . . . . . . . . . 1 . . . . 1 . Manual 8 | . . . . . . . . . . . . . . . . . . 3 . 2 3 Relay Couplers Released . | . . . . . . . . . . . . . . . . . . . . . . Fabnet Peak Effective % . | . . . . . . . . . . . . . . . . . . . . . . Robots Rewired 25 | . . . . . . . . 5 . . . . 20 . . . . . . . . Allies Hacked . | . . . . . . . . . . . . . . . . . . . . . . Hacks Repelled . | . . . . . . . . . . . . . . . . . . . . . . Allies | -11 -10 -10 -7 -7 -5 -5 -5 -5 -4 -4 -4 -4 -4 -4 -4 -4 -3 -3 -2 -2 -2 -------- Run | Yrd Mat Sub Rec Scr Fac Upp Upp War Pro Fac Was Fac Ext Cet Arc Hub Res Tes Res Qua Frg Total Allies 36 | . . . . . . . . 5 . 1 . 1 24 5 . . . . . . . Largest Group 14 | . . . . . . . . 5 . 1 . 1 14 10 10 9 . . . . . Highest-Rated Group 786 | . . . . . . . . 263 . 36 . 10 703 786 786 642 . . . . . Highest-Rated Ally 159 | . . . . . . . . 64 . 36 . 10 159 150 144 96 . . . . . Initial UFD Resources 120 | . . . . . 38 52 52 52 55 55 75 75 79 79 79 79 82 100 102 120 120 Total Orders . | . . . . . . . . . . . . . . . . . . . . . . Ally Attacks 301 | . . . . . . . . 16 . . . . 181 52 42 10 . . . . . Total Damage 8295 | . . . . . . . . 460 . . . . 5295 1040 1131 369 . . . . . Kills 55 | . . . . . . . . 4 . . . . 33 10 4 4 . . . . . Allies Corrupted 4 | . . . . . . . . . . . . . 4 . . . . . . . . Allies Melted 4 | . . . . . . . . 1 . . . . . . . . . . . . 3 Intel | -11 -10 -10 -7 -7 -5 -5 -5 -5 -4 -4 -4 -4 -4 -4 -4 -4 -3 -3 -2 -2 -2 ------- Run | Yrd Mat Sub Rec Scr Fac Upp Upp War Pro Fac Was Fac Ext Cet Arc Hub Res Tes Res Qua Frg Active Infowar (turns) 15915 | . 89 104 679 1827 1629 449 712 696 202 1021 34 381 543 134 2808 241 632 329 374 211 2820 Optics 3010 | . . . . . . . . . . . . . . . . . . . . 190 2820 Sensors 12770 | . . . . 852 1629 449 712 696 202 1021 34 381 543 134 2808 241 632 329 374 211 1522 Terrain 1654 | . . . 679 975 . . . . . . . . . . . . . . . . . Structural 193 | . 89 104 . . . . . . . . . . . . . . . . . . . Traps 1438 | . . . . . . . . . . . . . . . . . 442 306 321 1 368 Cloaking 402 | . . . . . 1 . . . . . . . . . . . . 29 21 8 343 Jamming 1213 | . . . . . . . . . . . . . . . . . . 175 374 211 453 ECM 151 | . . . . . . . . . . 41 . . . 2 . . 3 23 4 34 44 Robot Analysis Total . | . . . . . . . . . . . . . . . . . . . . . . Derelict Logs Recovered 8 | . . 2 . 4 . 1 . . 1 . . . . . . . . . . . . Drone Launches . | . . . . . . . . . . . . . . . . . . . . . . Drone Recoveries . | . . . . . . . . . . . . . . . . . . . . . . Exploration | -11 -10 -10 -7 -7 -5 -5 -5 -5 -4 -4 -4 -4 -4 -4 -4 -4 -3 -3 -2 -2 -2 ------------- Run | Yrd Mat Sub Rec Scr Fac Upp Upp War Pro Fac Was Fac Ext Cet Arc Hub Res Tes Res Qua Frg Turns Passed 28900 | . 400 6593 2982 2938 1739 449 712 698 230 1048 34 419 2440 429 2888 241 636 329 374 211 3110 Spaces Moved 26180 | 1 220 2534 1518 2147 1544 521 572 829 309 2626 108 879 1710 287 322 617 1496 620 811 435 6074 Core 53 | . . . . . . . . . . . . . . . . . . . . . 53 Treads 4131 | . 118 2279 141 . 346 . . . . . . . 1114 133 . . . . . . . Legs 114 | 1 102 . . . . . . . . . . . 11 . . . . . . . . Wheels 3787 | . . 255 1377 2147 8 . . . . . . . . . . . . . . . . Hover 2445 | . . . . . 1190 521 572 162 . . . . . . . . . . . . . Flight 15650 | . . . . . . . . 667 309 2626 108 879 585 154 322 617 1496 620 811 435 6021 Fastest Speed 6 | 120 120 145 135 135 40 40 43 26 26 23 24 6 24 31 31 31 22 25 19 17 14 Average Speed 74 | 120 141 252 155 135 73 42 43 29 26 23 24 23 113 90 31 31 28 25 22 17 24 Slowest Speed 480 | 120 160 320 480 135 291 43 43 43 27 101 24 97 190 160 31 31 102 28 96 19 122 Overloaded Moves 171 | . . . . . . . . . . . . 99 . . . . 33 . . . 39 Propulsion Burnouts 1 | . . . . . . . . . . . . 1 . . . . . . . . . Robots Hopped 220 | . . . . . . . . . . 14 1 15 6 . . 26 28 11 20 4 95 Potential Cave-ins 67 | . . . . . . . . . . . . 2 . . . . . . . . 65 Cave-ins Triggered 2 | . . . . . . . . . . . . . . . . . . . . . 2 Exploration Rate (%) 58 | 2 29 96 97 86 28 55 55 87 54 37 87 19 93 74 90 41 33 72 25 58 69 Regions Visited 21 Branch Regions 14 Pre-discovered Areas 13 | . . 1 8 1 1 . . . . 1 . . 1 . . . . . . . . Known Exits Taken 11 | . . . . . 1 1 1 1 1 . . 1 . . . 1 1 1 1 1 . Unknown Exits Taken 8 | 1 1 1 1 1 . . . . . . . . 1 1 1 . . . . . . Scrap Searched 21 | . . 8 . 5 . 3 2 . 3 . . . . . . . . . . . . Spaces Dug 91 | . . . 13 . 10 2 1 . 3 19 . 14 1 . . 1 5 1 5 7 9 Terrain Destroyed 2069 | . . 86 32 . 93 3 1 . 3 64 . 23 8 4 3 1 5 1 5 7 1730 Melee 68 | . . . . . 9 2 1 . 3 14 . 10 1 . . 1 5 1 5 7 9 Projectile 73 | . . 3 32 . 5 1 . . . 5 . 13 7 4 3 . . . . . . AOE 1928 | . . 83 . . 79 . . . . 45 . . . . . . . . . . 1721 Terrain Rammed . | . . . . . . . . . . . . . . . . . . . . . . Walls Destroyed . | . . . . . . . . . . . . . . . . . . . . . . Machines Disabled . | . . . . . . . . . . . . . . . . . . . . . . Actions | -11 -10 -10 -7 -7 -5 -5 -5 -5 -4 -4 -4 -4 -4 -4 -4 -4 -3 -3 -2 -2 -2 --------- Run | Yrd Mat Sub Rec Scr Fac Upp Upp War Pro Fac Was Fac Ext Cet Arc Hub Res Tes Res Qua Frg Total 34339 | . 268 2629 2074 2196 2039 743 1034 1277 446 2964 114 1004 2121 433 3069 637 1661 764 970 546 7350 Wait 6607 | . 8 12 462 5 327 212 451 385 118 261 6 23 233 75 2697 23 108 112 151 81 857 Move 25768 | . 219 2533 1517 2146 1543 520 571 828 308 2598 105 852 1697 286 321 570 1442 597 774 426 5915 Hop 170 | . . . . . . . . . . 14 1 11 6 . . 20 25 11 16 4 62 Pick Up 233 | . 5 18 17 19 25 3 2 8 1 10 1 14 16 9 4 6 10 8 4 5 48 Fast Attach 69 | . . . 1 1 7 1 1 1 4 7 . 3 16 6 7 5 3 1 1 3 1 Attach 184 | . 4 4 5 4 27 . . 10 . 8 . 18 3 14 3 1 18 5 5 4 51 Detach 103 | . 1 2 1 3 5 . . 4 . 4 . 5 5 9 2 1 11 4 2 2 42 Swap 99 | . 2 8 7 . 11 1 1 6 1 10 . 8 7 . 1 1 6 8 6 2 13 Drop 201 | . 3 4 10 18 14 4 3 7 7 12 1 8 26 17 7 8 6 4 4 4 34 Fire 468 | . 25 48 51 . 59 . 4 11 . 4 . 8 33 17 11 . . . . . 197 Melee 226 | . . . . . 18 2 1 2 6 36 . 41 18 . 16 2 15 14 7 15 33 Ram 1 | . . . 1 . . . . . . . . . . . . . . . . . . Kick . | . . . . . . . . . . . . . . . . . . . . . . Crush 7 | . 1 . 2 . 3 . . . . . . . 1 . . . . . . . . Escape Stasis 45 | . . . . . . . . . . . . 13 . . . . 15 . . . 17 Rewire 75 | . . . . . . . . 15 . . . . 60 . . . . . . . . Trap 2 | . . . . . . . . . . . . . . . . . 2 . . . . Miscellaneous 81 | . . . . . . . . . 1 . . . . . . . . . . . 80 Route ------- -11/Scrapyard -10/Materials (discovered 2 exits: [*Min] / *Sub) -10/Subcaves (discovered 4 exits: [*Mat x2] / *Rec / *Scr) -7/Recycling (discovered 2 exits: *Fac / *Scr) -7/Scraptown (discovered 2 exits: *Fac x2) -5/Factory (discovered 2 exits: *Upp x2) -5/Upper Caves -5/Upper Caves -5/Warlord -4/Proximity Caves -4/Factory (discovered 8 exits: *Res x4 / *Upp x2 / Ext x2) -4/Waste -4/Factory (discovered 2 exits: Res / *Ext) -4/Extension (discovered 3 exits: *Res x2 / *Cet) -4/Cetus (discovered 2 exits: *Res / [*Arc]) -4/Archives (discovered 3 exits: *Res / *Hub x2) -4/Hub_04(d) (discovered 4 exits: *Res x4) -3/Research (discovered 4 exits: *Res / *Arm / *Tes x2) -3/Testing -2/Research (discovered 2 exits: *Qua x2) -2/Quarantine (discovered 2 exits: *Sec / *Frg) -2/Protoforge 0bPrime History --------- Turn | Location | Event 1 | -11/Scrapyard | Discovered new exit (range 0) 1 | -11/Scrapyard | Entered Materials 2 | -10/Materials | Met a group of wandering Federalists 253 | -10/Materials | Discovered new exit (range 14) 333 | -10/Materials | Build established: Mutant 380 | -10/Materials | Discovered new exit (range 14) 401 | -10/Materials | Entered Subcaves 402 | -10/Subcaves | Continued accompanying wandering Federalists (6) 414 | -10/Subcaves | Learned Materials garrison access intel 757 | -10/Subcaves | Shifting Twisted Machinery released Battle Cannon 769 | -10/Subcaves | Shifting Twisted Machinery released Scrap Shield 1000 | -10/Subcaves | Visited Clippyterm 1007 | -10/Subcaves | Learned Research machine intel 1788 | -10/Subcaves | A swath of the cavern ceiling suddenly collapsed 2980 | -10/Subcaves | Shifting Twisted Machinery released Flamer 3439 | -10/Subcaves | Shifting Twisted Machinery released Sub. Laser 3448 | -10/Subcaves | Shifting Twisted Machinery released Riot Gun 3901 | -10/Subcaves | Learned location of Zion (-6) 3901 | -10/Subcaves | Met a Zionite searching for "candidates" 4138 | -10/Subcaves | Discovered new exit (range 3) 4803 | -10/Subcaves | Discovered new exit (range 9) 5434 | -10/Subcaves | Visited 4L-MR0's lab 5455 | -10/Subcaves | Found Prototype Device 5462 | -10/Subcaves | Found Powered Cannon 5906 | -10/Subcaves | Core integrity fell below 50% 6970 | -10/Subcaves | Discovered new exit (range 14) 6994 | -10/Subcaves | Entered Recycling 7644 | -7/Recycling | Core integrity fell below 20% 7856 | -7/Recycling | Discovered new exit (range 15) 8809 | -7/Recycling | Attached Powered Cannon, gained temporary slot: Power 9941 | -7/Recycling | Scanned before Scraplab entrance 9974 | -7/Recycling | Discovered new exit (range 3) 9976 | -7/Recycling | Entered Scraptown 9976 | -7/Scraptown | System corruption cleaned by C-Scrubber 10176 | -7/Scraptown | Visited Cave Peace 10244 | -7/Scraptown | Visited UFD Registry 10244 | -7/Scraptown | Registered with UFD as "Steamslider" 10268 | -7/Scraptown | Visited CR-KLE's Repair Center 10318 | -7/Scraptown | Visited Shadow of the Wyrm 10361 | -7/Scraptown | Scanned Subdweller tech in exchange for log data 10364 | -7/Scraptown | Learned Factory garrison access intel 10371 | -7/Scraptown | Learned Factory terminal intel 10395 | -7/Scraptown | Discovered new exit (range 5) 10535 | -7/Scraptown | Guru changed UFD alias to "Shocksink" 10738 | -7/Scraptown | Visited Infowarlord's Domain 10750 | -7/Scraptown | Found Exp. Signal Interpreter 10800 | -7/Scraptown | Visited Research Penetration Think Tank 10833 | -7/Scraptown | Visited Modified Component R&D 10851 | -7/Scraptown | Discovered new exit (range 12) 10929 | -7/Scraptown | Visited DA-N13 Charitable Foundation 10947 | -7/Scraptown | Found DCF Scrap (29 items) 10993 | -7/Scraptown | Visited Abandonware Association 11002 | -7/Scraptown | Learned abandonware demo "OVRCLOCK.EXE" 11011 | -7/Scraptown | Learned abandonware demo "ERRANTS.EXE" 11011 | -7/Scraptown | Learned abandonware demo "TRNCOAT.EXE" 11074 | -7/Scraptown | Delivered Scrap Shield to a Scientist 11256 | -7/Scraptown | Visited Scrap Suit Storage 11302 | -7/Scraptown | Visited Junk Repository 11776 | -7/Scraptown | CR-KLE repaired 3 parts 12106 | -7/Scraptown | Visited Derelict Rescue Squad 12115 | -7/Scraptown | Found DRS Beacon 12391 | -7/Scraptown | Found Scrap Suit 12822 | -7/Scraptown | Met Optimus 12822 | -7/Scraptown | Accepted into 0bPrime 12914 | -7/Scraptown | Entered Factory 12914 | -5/Factory | Evolved 10 slots: Propulsion x3, Utility x7 12915 | -5/Factory | Loaded intel: 25 terminal locations 12916 | -5/Factory | Loaded intel: 4 garrison access locations 13605 | -5/Factory | Lost 3 parts (2n1u) 13787 | -5/Factory | Build established: Scrapper 13813 | -5/Factory | Lost 3 parts (1p2u) 13963 | -5/Factory | Identified exit to Upper Caves 14020 | -5/Factory | Fabricated Imp. System Shield? 14032 | -5/Factory | System corruption reached 10% 14074 | -5/Factory | Fabricated Hacking Suite (x1) 14339 | -5/Factory | Loaded intel: 8 recycling unit locations 14361 | -5/Factory | Build established: Hacker-Mutant 14499 | -5/Factory | Learned location of Protoforge (-2) 14592 | -5/Factory | Central database locked down 14653 | -5/Factory | Entered Upper Caves 14655 | -5/Upper Caves | UFD Scientist delivered a prototype 14656 | -5/Upper Caves | Found Prototype Protection 15100 | -5/Upper Caves | Discovered new exit (range 6) 15102 | -5/Upper Caves | Identified exit to Upper Caves 15102 | -5/Upper Caves | Entered another Upper Caves area 15119 | -5/Upper Caves | Entered an active Warlord outpost 15124 | -5/Upper Caves | Learned Factory emergency access door positions 15183 | -5/Upper Caves | Encountered a Warlord checkpoint 15475 | -5/Upper Caves | Lost 3 allies 15810 | -5/Upper Caves | Discovered new exit (range 8) 15813 | -5/Upper Caves | Identified exit to Warlord 15814 | -5/Upper Caves | Entered Warlord 15829 | -5/Warlord | System corruption cleaned by Quarantine Array 15908 | -5/Warlord | Visited the Vortex Lab 15917 | -5/Warlord | Found Prototype Piercing Weapon 15919 | -5/Warlord | Found Prototype Piercing Weapon 15920 | -5/Warlord | Found Prototype Energy Gun 15922 | -5/Warlord | Found Prototype Energy Gun 15924 | -5/Warlord | Identified Vortex Rail (x2) 15926 | -5/Warlord | Identified Vortex Lance (x2) 15929 | -5/Warlord | Warlord's base attacked by MAIN.C 15999 | -5/Warlord | Rebuked by Warlord 16115 | -5/Warlord | Found Prototype Hackware 16115 | -5/Warlord | Identified System Mapper 16279 | -5/Warlord | Warlord forces counterattacked 16442 | -5/Warlord | Opened side exit 16497 | -5/Warlord | Spotted B-86 Titan 16509 | -5/Warlord | Discovered new exit (range 9) 16511 | -5/Warlord | Identified exit to Proximity Caves 16512 | -5/Warlord | Entered Proximity Caves 16530 | -4/Proximity Caves | Identified exit to Factory 16532 | -4/Proximity Caves | Lost 3 allies 16541 | -4/Proximity Caves | Activated DRS Beacon 16606 | -4/Proximity Caves | Build established: Hacker-Sprinter 16651 | -4/Proximity Caves | Unaware initiated a cargo recovery operation 16687 | -4/Proximity Caves | Found Prototype Device 16687 | -4/Proximity Caves | Identified Thermal Barrier 16741 | -4/Proximity Caves | Attracted the attention of an 0b10 checkpoint 16742 | -4/Proximity Caves | Entered Factory 16742 | -4/Factory | Evolved 2 slots: Power x1, Propulsion x1 16754 | -4/Factory | Lost 4 allies 16810 | -4/Factory | Identified exit to Upper Caves 16810 | -4/Factory | Identified exit to Extension 16917 | -4/Factory | Loaded intel: 8 recycling unit locations 17200 | -4/Factory | Fabricated M-36 Artificer? 17239 | -4/Factory | Fabricated Cld. Nuclear Pulse Thruster? 17528 | -4/Factory | Fabricated Cld. Nuclear Pulse Thruster? 17601 | -4/Factory | Watched by a mysterious "MATRIX" hacker 17607 | -4/Factory | Fabricated Cld. Nuclear Pulse Thruster? 17656 | -4/Factory | Discovered new exit (range 16) 17658 | -4/Factory | Learned location of Extension (-4) 17712 | -4/Factory | Learned location of 1 exit from Testing 17724 | -4/Factory | Identified exit to Research 17729 | -4/Factory | Learned 4 Quarantine zone layouts 17735 | -4/Factory | Learned 8 Research zone layouts 17750 | -4/Factory | Learned Research interactive machine intel 17777 | -4/Factory | Learned location of 1 exit from Upper Caves 17790 | -4/Factory | Sucked down chute 17790 | -4/Factory | Entered Waste 17796 | -4/Waste | Spotted C-40 Crusher 17802 | -4/Waste | Spotted C-40 Crusher 17802 | -4/Waste | Spotted C-40 Crusher 17802 | -4/Waste | Spotted C-40 Crusher 17805 | -4/Waste | EMP discharged 17806 | -4/Waste | Spotted C-40 Crusher 17806 | -4/Waste | Discovered new exit (range 15) 17807 | -4/Waste | Spotted C-40 Crusher 17811 | -4/Waste | Identified exit to Factory 17824 | -4/Waste | Entered Factory 17932 | -4/Factory | Loaded intel: 8 recycling unit locations 18090 | -4/Factory | Lost 5 parts (2p2n1u) 18210 | -4/Factory | Lost 5 parts (2n2u1w) 18243 | -4/Factory | Entered Extension 18261 | -4/Extension | Rescued A7 18289 | -4/Extension | Rescued a captive Derelict 18384 | -4/Extension | Rescued a captive Derelict 18386 | -4/Extension | Rescued a captive Derelict 18466 | -4/Extension | Build established: Wizard-Sprinter 18997 | -4/Extension | Build established: Hacker-Mutant 19484 | -4/Extension | Spotted B-86 Titan 19491 | -4/Extension | Spotted B-86 Titan 19505 | -4/Extension | Destroyed B-86 Titan 19511 | -4/Extension | Allies destroyed B-86 Titan 19756 | -4/Extension | Rescued a captive Derelict 19791 | -4/Extension | System corruption reached 10% 19830 | -4/Extension | Lost 5 allies 19900 | -4/Extension | Learned 4 Proximity Caves zone layouts 19939 | -4/Extension | Learned Testing terminal intel 19966 | -4/Extension | Learned Testing trap positions 19984 | -4/Extension | Learned 2 Armory zone layouts 19991 | -4/Extension | Learned Armory repair station intel 19992 | -4/Extension | Learned Research stockpile data 19993 | -4/Extension | Learned Testing scanalyzer intel 19994 | -4/Extension | Learned Research emergency access door positions 20050 | -4/Extension | Learned 4 Testing zone layouts 20243 | -4/Extension | First assault squad dispatched 20289 | -4/Extension | Build established: Commander-Mutant 20489 | -4/Extension | Lost 5 allies 20647 | -4/Extension | Discovered new exit (range 15) 20683 | -4/Extension | Entered Cetus 20683 | -4/Cetus | Accompanied by 8 allies (A7) 20688 | -4/Cetus | Acquired a Cetus Manufacturing Module code from A7 20702 | -4/Cetus | Spotted Cetus Guard 20706 | -4/Cetus | Spotted Cetus Guard 20710 | -4/Cetus | Spotted Cetus Guard 20711 | -4/Cetus | Allies destroyed Cetus Guard 20715 | -4/Cetus | Spotted Cetus Guard 20715 | -4/Cetus | Allies destroyed Cetus Guard 20715 | -4/Cetus | Allies destroyed Cetus Guard 20725 | -4/Cetus | Allies destroyed Cetus Guard 20760 | -4/Cetus | Build established: Hacker-Mutant 20788 | -4/Cetus | Started Cetus Manufacturing Module 20800 | -4/Cetus | Escorted A7 to Cetus Mainframe 20813 | -4/Cetus | Manufactured an Enhanced Grunt 20838 | -4/Cetus | Manufactured an Enhanced Grunt 20863 | -4/Cetus | Manufactured an Enhanced Grunt 20863 | -4/Cetus | Discovered new exit (range 15) 20888 | -4/Cetus | Manufactured an Enhanced Grunt 20892 | -4/Cetus | Spotted Cetus Guard 20892 | -4/Cetus | Spotted Cetus Guard 20894 | -4/Cetus | Allies destroyed Cetus Guard 20895 | -4/Cetus | Spotted Cetus Guard 20897 | -4/Cetus | Spotted Cetus Guard 20909 | -4/Cetus | Allies destroyed Cetus Guard 20909 | -4/Cetus | Allies destroyed Cetus Guard 20913 | -4/Cetus | Manufactured an Enhanced Grunt 20918 | -4/Cetus | Allies destroyed Cetus Guard 20930 | -4/Cetus | Discovered exit to Research (range 15) 20940 | -4/Cetus | Met Revision 17 21112 | -4/Cetus | Entered Archives 21112 | -4/Archives | Accompanied by 10 allies (A7) 21117 | -4/Archives | Received a hacking code to weaken MAIN.C 21159 | -4/Archives | Discovered exit to Research (range 15) 21218 | -4/Archives | Discovered new exit (range 15) 21497 | -4/Archives | Discovered new exit (range 15) 21534 | -4/Archives | Build established: Wizard-Sprinter 24000 | -4/Archives | Entered Hub_04(d) 24000 | -4/Hub_04(d) | Accompanied by 9 allies 24005 | -4/Hub_04(d) | Discovered exit to Research (range 16) 24201 | -4/Hub_04(d) | Network Hub disabled 24203 | -4/Hub_04(d) | Network Hub disabled 24220 | -4/Hub_04(d) | Spotted Lightning 24221 | -4/Hub_04(d) | Spotted Lightning 24227 | -4/Hub_04(d) | Spotted Lightning 24235 | -4/Hub_04(d) | Core integrity fell below 50% 24236 | -4/Hub_04(d) | Spotted Lightning 24236 | -4/Hub_04(d) | Spotted Lightning 24241 | -4/Hub_04(d) | Entered Research 24241 | -3/Research | Evolved 2 slots: Propulsion x1, Utility x1 24242 | -3/Research | Identified exit to Armory 24246 | -3/Research | Loaded intel: 111 machine locations 24247 | -3/Research | Loaded intel: 43 interactive machine locations 24320 | -3/Research | Loaded intel: 5 recycling unit locations 24330 | -3/Research | Spotted B-86 Titan 24418 | -3/Research | Identified exit to Testing 24441 | -3/Research | Revision forces began assault on 0b10 24461 | -3/Research | Discovered new exit (range 15) 24511 | -3/Research | Found Prototype Device 24512 | -3/Research | Identified Exp. ECM Suite 24514 | -3/Research | Found Prototype Device 24515 | -3/Research | Identified Exp. Thermal Shield 24528 | -3/Research | Fabricated Adv. Cloaking Device? 24543 | -3/Research | Lost 5 allies 24603 | -3/Research | Identified exit to Research 24699 | -3/Research | Spotted B-86 Titan 24797 | -3/Research | Build established: Wizard-Scout 24802 | -3/Research | Met up with Revision 17++ 24824 | -3/Research | Fabricated Adv. Transmission Jammer? 24877 | -3/Research | Entered Testing 24880 | -3/Testing | Loaded intel: 6 trap records 24881 | -3/Testing | Loaded intel: 7 terminal locations 24882 | -3/Testing | Loaded intel: 2 scanalyzer locations 24888 | -3/Testing | Targeted by mysterious "MATRIX" hacker 24947 | -3/Testing | Spotted Striker 24965 | -3/Testing | Found Prototype Device 24977 | -3/Testing | Identified Exp. Hardlight Generator 25152 | -3/Testing | Found System Mapper 25206 | -3/Testing | Entered Research 25206 | -2/Research | Evolved 2 slots: Utility x1, Weapon x1 25209 | -2/Research | Identified exit to Quarantine 25263 | -2/Research | Spotted B-90 Cyclops 25264 | -2/Research | Loaded intel: 5 recycling unit locations 25315 | -2/Research | Build established: Hacker-Ninja 25579 | -2/Research | Discovered exit to Quarantine (range 8) 25580 | -2/Research | Entered Quarantine 25588 | -2/Quarantine | Found Alien Reactor 25712 | -2/Quarantine | Found Alien Artifact 25714 | -2/Quarantine | Identified Terrabomb 25714 | -2/Quarantine | Used Terrabomb 25737 | -2/Quarantine | Spotted Fortress 25748 | -2/Quarantine | Discovered new exit (range 6) 25748 | -2/Quarantine | Discovered new exit (range 6) 25749 | -2/Quarantine | Identified exit to Section 7 25750 | -2/Quarantine | Identified exit to Protoforge 25791 | -2/Quarantine | Entered Protoforge 25823 | -2/Protoforge | Spotted B-90 Cyclops 25929 | -2/Protoforge | Identified Matter Drive 25935 | -2/Protoforge | Spotted Overlord 25938 | -2/Protoforge | Spotted Hotshot 25941 | -2/Protoforge | Spotted Hotshot 26027 | -2/Protoforge | Spotted Hotshot 26030 | -2/Protoforge | Spotted Hotshot 26044 | -2/Protoforge | Found Prototype Device 26045 | -2/Protoforge | Identified Crosscalibrator 26050 | -2/Protoforge | Spotted Immortal 26051 | -2/Protoforge | Spotted Decapitator 26051 | -2/Protoforge | Spotted Decapitator 26051 | -2/Protoforge | Spotted Decapitator 26051 | -2/Protoforge | Spotted Decapitator 26086 | -2/Protoforge | Spotted V590-y 26086 | -2/Protoforge | Spotted V972-w 26086 | -2/Protoforge | Spotted V946-q 26120 | -2/Protoforge | Spotted Decapitator 26120 | -2/Protoforge | Spotted Decapitator 26133 | -2/Protoforge | Spotted EXE-6 26133 | -2/Protoforge | Spotted EXE-6 26314 | -2/Protoforge | Spotted Immortal 26314 | -2/Protoforge | Spotted Immortal 26319 | -2/Protoforge | Spotted Decapitator 26319 | -2/Protoforge | Spotted Decapitator 26322 | -2/Protoforge | Spotted V871-u 26340 | -2/Protoforge | Found Cep. Antigrav Storage Unit 26342 | -2/Protoforge | Found Cep. Chromion Battery 26395 | -2/Protoforge | Spotted V415-p 26403 | -2/Protoforge | Found Cep. Chromion Battery 26460 | -2/Protoforge | Superfortress began startup sequence 26484 | -2/Protoforge | Spotted EXE-6 26484 | -2/Protoforge | Spotted EXE-6 26493 | -2/Protoforge | UFD initiated attack on Protoforge (Readiness: Maximal) 26493 | -2/Protoforge | Loaded intel: 3 recycling unit locations 26607 | -2/Protoforge | Optimus greeted in Protoforge 26630 | -2/Protoforge | Met 7R-MNS 26677 | -2/Protoforge | Found Prototype Processor 26679 | -2/Protoforge | Found Prototype Processor 26680 | -2/Protoforge | Found Prototype Ballistic Gun 26681 | -2/Protoforge | Found Prototype Device 26683 | -2/Protoforge | Found Prototype Ballistic Gun 26686 | -2/Protoforge | Identified Cep. XC Strikerail (x2) 26688 | -2/Protoforge | Identified Exp. Core Analyzer 26689 | -2/Protoforge | Identified Exp. Armor Integrity Analyzer 26690 | -2/Protoforge | Lost 3 allies 26697 | -2/Protoforge | Identified Exp. Kinecellerator 26704 | -2/Protoforge | Spotted AP7-3 26705 | -2/Protoforge | Spotted AP7-3 26792 | -2/Protoforge | Spotted Executioner 26864 | -2/Protoforge | Spotted Executioner 26949 | -2/Protoforge | Build established: Hacker-Scout 26983 | -2/Protoforge | Spotted Executioner 27006 | -2/Protoforge | Spotted Executioner 27006 | -2/Protoforge | Spotted Striker 27006 | -2/Protoforge | Spotted Executioner 27059 | -2/Protoforge | Destroyed 8 combat bots 27079 | -2/Protoforge | Lost 10 allies 27121 | -2/Protoforge | Spotted Hotshot 27121 | -2/Protoforge | Spotted Hotshot 27132 | -2/Protoforge | Spotted Executioner 27132 | -2/Protoforge | Destroyed Hotshot 27160 | -2/Protoforge | Spotted Executioner 27164 | -2/Protoforge | Spotted Executioner 27164 | -2/Protoforge | Spotted Executioner 27164 | -2/Protoforge | Spotted Executioner 27206 | -2/Protoforge | Forge Plexus network access discovered 27265 | -2/Protoforge | Fabricated Gui. Micro-nuke Launcher (x1) 27268 | -2/Protoforge | Fabricated Gui. Micro-nuke Launcher (x1) 27269 | -2/Protoforge | Fabricated Gui. Micro-nuke Launcher (x1) 27272 | -2/Protoforge | Lost 3 allies 27282 | -2/Protoforge | Destroyed Hotshot 27311 | -2/Protoforge | Spotted Executioner 27311 | -2/Protoforge | Spotted Executioner 27340 | -2/Protoforge | Spotted Executioner 27340 | -2/Protoforge | Spotted Executioner 27350 | -2/Protoforge | Found UFD Drillbomb 27413 | -2/Protoforge | Destroyed 16 combat bots 27417 | -2/Protoforge | Installed UFD Drillbomb at designated target 27417 | -2/Protoforge | UFD reported confirmed Drillbomb installation 27427 | -2/Protoforge | Found UFD Drillbomb 27434 | -2/Protoforge | Spotted Executioner 27435 | -2/Protoforge | Spotted Executioner 27439 | -2/Protoforge | Destroyed Executioner 27464 | -2/Protoforge | Installed UFD Drillbomb at designated target 27464 | -2/Protoforge | UFD reported confirmed Drillbomb installation 27491 | -2/Protoforge | Spotted Executioner 27510 | -2/Protoforge | Spotted Striker 27512 | -2/Protoforge | Found UFD Drillbomb 27524 | -2/Protoforge | UFD reported confirmed Drillbomb installation 27526 | -2/Protoforge | Destroyed Striker 27532 | -2/Protoforge | Spotted Striker 27533 | -2/Protoforge | Spotted Striker 27557 | -2/Protoforge | Lost 10 allies 27578 | -2/Protoforge | Spotted Striker 27579 | -2/Protoforge | Spotted Striker 27596 | -2/Protoforge | Destroyed Striker 27607 | -2/Protoforge | Spotted Striker 27611 | -2/Protoforge | Spotted Striker 27615 | -2/Protoforge | Destroyed Striker 27622 | -2/Protoforge | Spotted Executioner 27625 | -2/Protoforge | Destroyed Executioner 27644 | -2/Protoforge | Lost 3 allies 27692 | -2/Protoforge | Destroyed 18 combat bots 27692 | -2/Protoforge | Spotted Executioner 27725 | -2/Protoforge | Spotted Executioner 27740 | -2/Protoforge | Destroyed Executioner 27746 | -2/Protoforge | Spotted Striker 27747 | -2/Protoforge | Spotted Executioner 27749 | -2/Protoforge | Spotted Striker 27781 | -2/Protoforge | Spotted Striker 27784 | -2/Protoforge | Spotted Executioner 27790 | -2/Protoforge | Destroyed 7 combat bots 27794 | -2/Protoforge | Lost 7 allies 27817 | -2/Protoforge | Spotted Hotshot 27818 | -2/Protoforge | Spotted Hotshot 27839 | -2/Protoforge | Spotted Executioner 27839 | -2/Protoforge | Spotted Executioner 27839 | -2/Protoforge | UFD reported confirmed Drillbomb installation 27841 | -2/Protoforge | Lost 3 allies 27863 | -2/Protoforge | Destroyed Executioner 27889 | -2/Protoforge | Installed UFD Drillbomb at designated target 27889 | -2/Protoforge | UFD reported confirmed Drillbomb installation 27902 | -2/Protoforge | Spotted Executioner 27909 | -2/Protoforge | Found UFD Drillbomb 27924 | -2/Protoforge | Destroyed Executioner 27924 | -2/Protoforge | Spotted Striker 27962 | -2/Protoforge | Installed UFD Drillbomb at designated target 27962 | -2/Protoforge | UFD reported confirmed Drillbomb installation 27984 | -2/Protoforge | Found UFD Drillbomb 27996 | -2/Protoforge | Spotted Executioner 27996 | -2/Protoforge | Spotted Striker 28042 | -2/Protoforge | Installed UFD Drillbomb at designated target 28042 | -2/Protoforge | UFD reported confirmed Drillbomb installation 28065 | -2/Protoforge | Found 0bPrime Scrap Suit 28076 | -2/Protoforge | Spotted Striker 28076 | -2/Protoforge | Spotted Striker 28077 | -2/Protoforge | Destroyed Striker 28103 | -2/Protoforge | Found UFD Drillbomb 28112 | -2/Protoforge | Spotted Executioner 28149 | -2/Protoforge | Spotted Striker 28150 | -2/Protoforge | Spotted Striker 28160 | -2/Protoforge | Spotted Striker 28170 | -2/Protoforge | Destroyed Striker 28194 | -2/Protoforge | Crushed by falling debris 28201 | -2/Protoforge | Lost 5 allies 28209 | -2/Protoforge | Destroyed 9 combat bots 28225 | -2/Protoforge | Lost 3 parts (2n1u) 28259 | -2/Protoforge | Spotted Executioner 28264 | -2/Protoforge | Destroyed Executioner 28268 | -2/Protoforge | Spotted Executioner 28279 | -2/Protoforge | Spotted Executioner 28279 | -2/Protoforge | Spotted Striker 28280 | -2/Protoforge | Spotted Executioner 28287 | -2/Protoforge | Spotted Executioner 28306 | -2/Protoforge | Destroyed 10 combat bots 28314 | -2/Protoforge | System corruption reached 10% 28340 | -2/Protoforge | Destroyed Striker 28359 | -2/Protoforge | Destroyed Executioner 28376 | -2/Protoforge | Destroyed Executioner 28391 | -2/Protoforge | Build established: Scavenger-Sprinter 28396 | -2/Protoforge | Lost 13 allies 28399 | -2/Protoforge | Spotted Striker 28407 | -2/Protoforge | Spotted Striker 28408 | -2/Protoforge | Destroyed 8 combat bots 28440 | -2/Protoforge | Lost 4 allies 28441 | -2/Protoforge | Spotted Hotshot 28461 | -2/Protoforge | Spotted Executioner 28466 | -2/Protoforge | Spotted Executioner 28467 | -2/Protoforge | Spotted Striker 28525 | -2/Protoforge | Spotted Striker 28552 | -2/Protoforge | Spotted Executioner 28568 | -2/Protoforge | Spotted Executioner 28568 | -2/Protoforge | Spotted Striker 28584 | -2/Protoforge | Core integrity fell below 50% 28584 | -2/Protoforge | Spotted Executioner 28590 | -2/Protoforge | Discovered new exit (range 9) 28590 | -2/Protoforge | Spotted Hotshot 28590 | -2/Protoforge | Spotted Executioner 28593 | -2/Protoforge | Identified exit to Access 28596 | -2/Protoforge | Lost 10 allies 28605 | -2/Protoforge | Installed UFD Drillbomb at designated target 28605 | -2/Protoforge | UFD reported confirmed Drillbomb installation 28630 | -2/Protoforge | Crushed by falling debris 28661 | -2/Protoforge | Lost 8 parts (3n4u1w) 28672 | -2/Protoforge | Found UFD Drillbomb 28726 | -2/Protoforge | Installed UFD Drillbomb at designated target 28726 | -2/Protoforge | UFD reported confirmed Drillbomb installation 28730 | -2/Protoforge | Lost 5 allies 28801 | -2/Protoforge | Installed UFD Drillbomb at designated target 28801 | -2/Protoforge | UFD reported confirmed Drillbomb installation 28802 | -2/Protoforge | UFD began Drillbomb countdown 28854 | -2/Protoforge | Spotted Executioner 28861 | -2/Protoforge | Core integrity fell below 20% 28888 | -2/Protoforge | Lost 3 parts (2n1u) 28895 | -2/Protoforge | Build established: Mutant 28902 | *** | Defending 0bPrime! Last Messages --------------- the end of MC's control over the Protoforge! 28893_ 0bP_NET: In T-9 this fine piece of machinery is all ours for the steep price of... many UFD lives. 28894_ 0bP_NET: But with it we will not only rebuild, we will wrest full control over 0b1 for ourselves! 28895_ 0bP_NET: What better way to punctuate our success than a blaze of glory, directed away from ourselves, of course. 28896_ 0bP_NET: Time for our final countdown to an explosive victory... 28897_ 0bP_NET: 5! 28898_ 0bP_NET: 4! 28899_ 0bP_NET: 3! 28900_ 0bP_NET: If you're in the wrong place at the wrong time, the wrong time being in just a moment, I'm sorry but prepare to die. 28901_ 0bP_NET: Otherwise, enjoy the show! [Achievement: Robotopia] Map ----- +----------------------------------------------------+ | """ " #?#######???? | | % """ " """"" #?#"""""#???? | | % "" "" """" #?#"""""#???? | | "" "" " ###"" F"###?? | | """ " " " #"" ""#?? | | """" " "" "" "" #" "### | | " " "" "# """ | | % "" # """ | | % % "" "" + """ | | % % % "" " " + F" | | % % % "" " " # """ | | % % "" " """ "# "" | | % % %% % % " "# ### | | % %%%%% % % # ### | | &% %%%%%& % % " "# """ | | %&%%%%%%%% % % % "" # """ | | %"""""""""& %& % = " " " + [= "F" | | """"""""""""""%3 """ " +![! " | | """""""""""""""% =%% % " " #!!* "" | | """"""""""""""""%%%SS "" "" "# "" | | """""""""""""""""%%SS "" "#" "### | | """"""""""""""""""%%%"" " "#"" ""#?? | | """""""""""""""""""%E%% " "###"F ""###?? | | """"""""""""""""""""s%% %[""" % " #?#"""""#???? | | """"""""""""""""""""=%"[%! "% "#?#"""""#???? | | """"""""""""""""""""%%%%!@ ]% #?#######???? | | """""""""""""""""""""%%%" % "#???????????? | | """""""""""""""""""""!js" % "" " #???????????? | | """""""""""""""""""""!%s TT " " "#???????????? | | """""""""""""""""""""! %sTT ss #???????????? | | """""""""""""""""""""! s #???????????? | | """""""""""""""""""""* % ##??????????? | | """"""""""""""""""""" !%% s " #??????????? | | """"""""""""""""""""" " "" "" #??????????? | | """"""""""""""""""""" " "" " ##??????????? | | """""""""""""""""""" "" " " #???????????? | | """""""""""""""""""" """ " #???????????? | | """""""""""""""""""" "" """ %%#???????????? | | """"""""""""""""""" " " #???????????? | | """""""""""""""""" "" "%" "" %#???????????? | | """"""""""""""""" " " """"%%#???????????? | | """""""""""""""" " " " """ #???????????? | | """"""""""""""" "" " " "" #???????????? | | """"""""""""""%"% "" #???????????? | | """""""""%%% %"% "" #???????????? | | %% % " """ """ #???????????? | | " [ % "" "" "" """" #???????????? | | % " " """" ###?????????? | | " " "" """ "" "&#?????????? | | """""""" "&#?????????? | +----------------------------------------------------+ Best States ------------- Heat Dissipation 136 Coolant Potential 100 Energy Generation 39 Energy Capacity 1810 Matter Stores 300 Matter Capacity 300 Sight Range 20 Robot Scan Range 16 Terrain Scan Range 14 Terrain Scan Density 10 ECM Strength 2 Jamming Range 16 Cloak Strength 4 Additional Mass Support 16 Corruption Containment 12 Armor Coverage 300 Resistance: TH 30 Propulsion Shielding 66 Evasion (%) 74 Armor Integrity Analysis 50 Recoil Reduction 6 Offensive Hacking 54 Defensive Hacking 26 Authchip Count 2 Item Schematics ----------------- Hacking Suite | -7/Recycling | Hacked Imp. System Shield | -5/Factory | Hacked Adv. Hacking Suite | -5/Factory | Scanalyzed Cld. Nuclear Pulse Thruster | -4/Factory | Hacked Adv. Cloaking Device | -4/Factory | Scanalyzed Adv. Transmission Jammer | -3/Research | Hacked Cld. Antimatter Reactor | -3/Testing | Archive Spectral Analyzer | -3/Testing | Archive Exp. Terrain Scan Processor | -3/Testing | Archive Imp. KE Penetrator | -3/Testing | Archive Helical Railgun | -3/Testing | Archive Quantum Shading Machine | -3/Testing | Archive Lrn. Phase Cannon | -3/Testing | Archive Centrium Heavy Armor Plating | -3/Testing | Archive Com. Tesla Bomb Launcher | -3/Testing | Archive Exp. Field Recycling Unit | -3/Testing | Archive Hvy. Neutron Cannon | -3/Testing | Archive Kinetic Spear | -3/Testing | Archive Cld. Field Propulsion Drive | -2/Quarantine | Archive Exp. Thermal Shield | -2/Protoforge | Archive Exp. Biometal Heavy Treads | -2/Protoforge | Archive Hvy. Proton Missile Launcher | -2/Protoforge | Archive Gui. Micro-nuke Launcher | -2/Protoforge | Hacked Robot Schematics ------------------ S-43 Plague | -3/Testing | Archive A-15 Conveyor | -2/Quarantine | Archive H-77 Assassin | -2/Protoforge | Hacked Fabricated ------------ Imp. System Shield | x1 | -5/Factory | Authchip Hacking Suite | x1 | -5/Factory | Authchip M-36 Artificer | x1 | -4/Factory | Preloaded Cld. Nuclear Pulse Thruster | x1 | -4/Factory Cld. Nuclear Pulse Thruster | x1 | -4/Factory Cld. Nuclear Pulse Thruster | x1 | -4/Factory Adv. Cloaking Device | x2 | -3/Research Adv. Transmission Jammer | x2 | -3/Research Gui. Micro-nuke Launcher | x1 | -2/Protoforge Gui. Micro-nuke Launcher | x1 | -2/Protoforge Gui. Micro-nuke Launcher | x1 | -2/Protoforge Repaired ---------- Nothing Studied --------- Field Propulsion Drive | -4/Factory | Hacked Nuclear Pulse Thruster | -4/Factory | Hacked Impulse Thruster | -4/Factory | Hacked VTOL Module | -4/Factory | Hacked Micro-nuke Launcher | -4/Factory | Hacked Mic. Fission Core | -4/Factory | Hacked Falx | -4/Factory | Hacked Adv. Datajack | -4/Factory | Hacked Lgt. Angular Momentum Engine | -4/Factory | Hacked Field Propulsion Array | -3/Testing | Hacked Nuclear Pulse Array | -3/Testing | Hacked Particle Reactor | -2/Quarantine | Hacked Alien Tech Used ----------------- Terrabomb Matter Drive Achievements -------------- Fancy Inventory Longdome?! Loot Taster Robotopia UFD MVP Challenges ------------ None Game ------ Seed BottomlessCouplerArmor Manual? 0 Play Time 05:47:11 Cumulative 83.7 hours Start 2026.07.27 @ 13:49:16 End 2026.07.28 @ 14:19:09 Sessions 39 Manual Loads 0 Difficulty Rogue Special Mode None Game No. 56 Rogue 55 Adventurer 1 Explorer 0 Win Type 9 Total 6 Types 3/0/1/1/0/0/0/0/0/1 Lore% 46 Gallery% 56 Achievement% 53 Wizard Run 0 Options --------- Layout 1 ASCII 0 Keyboard 0 Movement Numpad Keybinds 0 Fullscreen 1 Font 32/SmallcapsGlow Map View 50x35 Zoom Use 0% Tactical HUD 1 Map Filters NONE Filters NONE Steam 1 RUN: d53dca18-ea7b-416d-9123-73e5b5e28248